Workbook

Sheet Sheet1
A1: 广东省供销合作社2023年度中央财政资金农业社会化服务项目补贴明细表
A2: 序号 | B2: 客户名称 | C2: 服务时间 | D2: 作物 | E2: 服务环节 | F2: 服务面积（亩） | G2: 补贴金额（元/亩） | H2: 折算面积 | I2: 申请补贴金额（元）
A3: 1 | B3: 云罗农业 | C3: 2024年早造 | D3: 水稻 | E3: 耙田 | F3: 425 | G3: 22 | H3: =F3*0.36 -> 153 | I3: =F3*G3 -> 9350
A4: 2 | B4: 张世东 | C4: 2024年早造 | D4: 水稻 | E4: 耙田 | F4: 400 | G4: 22 | H4: =F4*0.36 -> 144 | I4: 8800
A5: 3 | C5: 2024年早造 | D5: 水稻 | E5: 插秧 | F5: 400 | G5: 15 | H5: =F5*0.27 -> 108 | I5: 6000
A6: 4 | C6: 2024年早造 | D6: 水稻 | E6: 收割 | F6: 400 | G6: 15 | H6: 108 | I6: 6000
A7: 5 | C7: 2024年早造 | D7: 水稻 | E7: 烘干 | F7: 400 | G7: 15 | H7: 108 | I7: 6000
A8: 6 | B8: 陈周灿 | C8: 2024年早造 | D8: 水稻 | E8: 单一飞防（叶面肥） | F8: 200 | G8: 5.8 | H8: =F8*0.1 -> 20 | I8: 1160
A9: 7 | B9: 致达 | C9: 2024年早造 | D9: 水稻 | E9: 耙田 | F9: 700 | G9: 22 | H9: =F9*0.36 -> 252 | I9: 15400
A10: 8 | C10: 2024年早造 | D10: 水稻 | E10: 烘干 | F10: 700 | G10: 15 | H10: =F10*0.27 -> 189 | I10: 10500
A11: 9 | B11: 吴宇鸿 | C11: 2024年早造 | D11: 水稻 | E11: 耙田 | F11: 220 | G11: 22 | H11: 79.2 | I11: 4840
A12: 10 | C12: 2024年早造 | D12: 水稻 | E12: 插秧 | F12: 220 | G12: 15 | H12: 59.4 | I12: 3300
A13: 11 | C13: 2024年早造 | D13: 水稻 | E13: 收割 | F13: 220 | G13: 15 | H13: 59.4 | I13: 3300
A14: 12 | B14: 沈贵有 | C14: 2024年早造 | D14: 水稻 | E14: 耙田 | F14: 700 | G14: 22 | H14: 252 | I14: 15400
A15: 13 | C15: 2024年早造 | D15: 水稻 | E15: 插秧 | F15: 700 | G15: 15 | H15: =F15*0.27 -> 189 | I15: 10500
A16: 14 | C16: 2024年早造 | D16: 水稻 | E16: 收割 | F16: 700 | G16: 15 | H16: 189 | I16: 10500
A17: 15 | C17: 2024年早造 | D17: 水稻 | E17: 烘干 | F17: 700 | G17: 15 | H17: 189 | I17: 10500
A18: 16 | B18: 岗咀村委 | C18: 2024年早造 | D18: 水稻 | E18: 单一飞防（叶面肥） | F18: 848.6 | G18: 5.8 | H18: =F18*0.1 -> 84.86 | I18: 4921.88
A19: 17 | B19: 上宁村委 | C19: 2024年早造 | D19: 水稻 | E19: 单一飞防（叶面肥） | F19: 462.6 | G19: 5.8 | H19: 46.26 | I19: 2683.08
A20: 18 | B20: 新塘村委 | C20: 2024年早造 | D20: 水稻 | E20: 单一飞防（叶面肥） | F20: 1023 | G20: 5.8 | H20: 102.3 | I20: 5933.4
A21: 19 | B21: 赤坎村委 | C21: 2024年早造 | D21: 水稻 | E21: 单一飞防（叶面肥） | F21: 379 | G21: 5.8 | H21: 37.9 | I21: 2198.2
A22: 20 | B22: 马兰村委 | C22: 2024年早造 | D22: 水稻 | E22: 单一飞防（叶面肥） | F22: 111 | G22: 5.8 | H22: 11.1 | I22: 643.8
A23: 21 | B23: 大灼村委 | C23: 2024年早造 | D23: 水稻 | E23: 单一飞防（叶面肥） | F23: 219 | G23: 5.8 | H23: 21.9 | I23: 1270.2
A24: 22 | B24: 大甲村委 | C24: 2024年早造 | D24: 水稻 | E24: 单一飞防（叶面肥） | F24: 240 | G24: 5.8 | H24: 24 | I24: 1392
A25: 23 | B25: 凤西村委 | C25: 2024年早造 | D25: 水稻 | E25: 单一飞防（叶面肥） | F25: 114 | G25: 5.8 | H25: 11.4 | I25: 661.2
A26: 24 | B26: 凤塘村委 | C26: 2024年早造 | D26: 水稻 | E26: 单一飞防（叶面肥） | F26: 1170 | G26: 5.8 | H26: 117 | I26: 6786
A27: 25 | B27: 营下村委 | C27: 2024年早造 | D27: 水稻 | E27: 单一飞防（叶面肥） | F27: 1322 | G27: 5.8 | H27: 132.2 | I27: 7667.6
A28: 26 | B28: 里午村委 | C28: 2024年早造 | D28: 水稻 | E28: 收割 | F28: 350 | G28: 15 | H28: =F28*0.27 -> 94.5 | I28: 5250
A29: 27 | B29: 欧飞昌 | C29: 2024年早造 | D29: 水稻 | E29: 单一飞防（叶面肥） | F29: 180 | G29: 5.8 | H29: =F29*0.1 -> 18 | I29: 1044
A30: 28 | B30: 黎同彪 | C30: 2024年早造 | D30: 水稻 | E30: 单一飞防（叶面肥） | F30: 70 | G30: 5.8 | H30: 7 | I30: 406
A31: 29 | B31: 林杰 | C31: 2024年早造 | D31: 水稻 | E31: 单一飞防（叶面肥） | F31: 95 | G31: 5.8 | H31: 9.5 | I31: 551
A32: 30 | B32: 沈健勋 | C32: 2024年早造 | D32: 水稻 | E32: 单一飞防（叶面肥） | F32: 70 | G32: 5.8 | H32: 7 | I32: 406
A33: 31 | B33: 廖国飞 | C33: 2024年早造 | D33: 水稻 | E33: 单一飞防（叶面肥） | F33: 226 | G33: 5.8 | H33: 22.6 | I33: 1310.8
A34: 32 | B34: 唐木兰 | C34: 2024年早造 | D34: 水稻 | E34: 单一飞防（叶面肥） | F34: 30 | G34: 5.8 | H34: 3 | I34: 174
A35: 33 | B35: 陈世源 | C35: 2024年早造 | D35: 水稻 | E35: 单一飞防（叶面肥） | F35: 50 | G35: 5.8 | H35: 5 | I35: 290
A36: 34 | B36: 陈中月 | C36: 2024年早造 | D36: 水稻 | E36: 单一飞防（叶面肥） | F36: 40 | G36: 5.8 | H36: 4 | I36: 232
A37: 35 | B37: 张胡清 | C37: 2024年早造 | D37: 水稻 | E37: 单一飞防（叶面肥） | F37: 70 | G37: 5.8 | H37: 7 | I37: 406
A38: 36 | B38: 陈栋宇 | C38: 2024年早造 | D38: 水稻 | E38: 单一飞防（叶面肥） | F38: 10 | G38: 5.8 | H38: 1 | I38: 58
A39: 37 | B39: 李启明 | C39: 2024年早造 | D39: 水稻 | E39: 单一飞防（叶面肥） | F39: 25 | G39: 5.8 | H39: 2.5 | I39: 145
A40: 38 | B40: 云罗农业 | C40: 2024年早造 | D40: 水稻 | E40: 单一飞防（叶面肥） | F40: 425 | G40: 5.8 | H40: 42.5 | I40: 2465
A41: 39 | B41: 绿稻 | C41: 2024年早造 | D41: 水稻 | E41: 耙田 | F41: 2800 | G41: 22 | H41: =F41*0.36 -> 1008 | I41: 61600
A42: 40 | C42: 2024年早造 | D42: 水稻 | E42: 收割 | F42: 2800 | G42: 15 | H42: =F42*0.27 -> 756 | I42: 42000
A43: 41 | B43: 陈才权 | C43: 2024年早造 | D43: 水稻 | E43: 耙田 | F43: 650 | G43: 33.5 | H43: 234 | I43: 21775
A44: 42 | B44: 陈才权 | C44: 2024年早造 | D44: 水稻 | E44: 插秧 | F44: 650 | G44: 26.5 | H44: 175.5 | I44: 17225
A45: 43 | B45: 陈才权 | C45: 2024年早造 | D45: 水稻 | E45: 烘干 | F45: 650 | G45: 26.5 | H45: 175.5 | I45: 17225
A46: 44 | B46: 置田家庭农场 | C46: 2024年早造 | D46: 水稻 | E46: 耙田 | F46: 2300 | G46: 22 | H46: 828 | I46: 50600
A47: 45 | B47: 置田家庭农场 | C47: 2024年早造 | D47: 水稻 | E47: 烘干 | F47: 2300 | G47: 15 | H47: =F47*0.27 -> 621 | I47: 34500
A48: 46 | B48: 陈南章 | C48: 2024年早造 | D48: 水稻 | E48: 收割 | F48: 80 | G48: 15 | H48: 21.6 | I48: 1200
A49: 47 | B49: 唐海 | C49: 2024年早造 | D49: 水稻 | E49: 收割 | F49: 138 | G49: 15 | H49: 37.26 | I49: 2070
A50: 48 | B50: 罗定德米 | C50: 2024年早造 | D50: 水稻 | E50: 耙田 | F50: 353 | G50: 22 | H50: =F50*0.36 -> 127.08 | I50: 7766
A51: 49 | C51: 2024年早造 | D51: 水稻 | E51: 收割 | F51: 353 | G51: 15 | H51: =F51*0.27 -> 95.31 | I51: 5295
A52: 50 | B52: 李石才 | C52: 2024年早造 | D52: 水稻 | E52: 耙田 | F52: 64 | G52: 22 | H52: 23.04 | I52: 1408
A53: 51 | B53: 李石才 | C53: 2024年早造 | D53: 水稻 | E53: 收割 | F53: 64 | G53: 15 | H53: 17.28 | I53: 960
A54: 52 | B54: 莫亚钊 | C54: 2024年早造 | D54: 水稻 | E54: 耙田 | F54: 550 | G54: 22 | H54: 198 | I54: 12100
A55: 53 | C55: 2024年早造 | D55: 水稻 | E55: 收割 | F55: 550 | G55: 15 | H55: 148.5 | I55: 8250
A56: 54 | B56: 白盛坤 | C56: 2024年早造 | D56: 水稻 | E56: 耙田 | F56: 166 | G56: 22 | H56: =F56*0.36 -> 59.76 | I56: 3652
A57: 55 | C57: 2024年早造 | D57: 水稻 | E57: 收割 | F57: 166 | G57: 15 | H57: =F57*0.27 -> 44.82 | I57: 2490
A58: 56 | C58: 2024年早造 | D58: 水稻 | E58: 单一飞防（叶面肥） | F58: 170 | G58: 5.8 | H58: =F58*0.1 -> 17 | I58: 986
A59: 57 | B59: 梁成就 | C59: 2024年早造 | D59: 水稻 | E59: 耙田 | F59: 143 | G59: 22 | H59: =F59*0.36 -> 51.48 | I59: 3146
A60: 58 | C60: 2024年早造 | D60: 水稻 | E60: 收割 | F60: 230.4 | G60: 15 | H60: =F60*0.27 -> 62.208 | I60: 3456
A61: 59 | C61: 2024年早造 | D61: 水稻 | E61: 单一飞防（叶面肥） | F61: 143 | G61: 5.8 | H61: =F61*0.1 -> 14.3 | I61: 829.4
A62: 60 | B62: 陈汉清 | C62: 2024年早造 | D62: 水稻 | E62: 耙田 | F62: 181.5 | G62: 22 | H62: =F62*0.36 -> 65.34 | I62: 3993
A63: 61 | C63: 2024年早造 | D63: 水稻 | E63: 收割 | F63: 181.5 | G63: 15 | H63: =F63*0.27 -> 49.005 | I63: 2722.5
A64: 62 | C64: 2024年早造 | D64: 水稻 | E64: 单一飞防（叶面肥） | F64: 175 | G64: 5.8 | H64: =F64*0.1 -> 17.5 | I64: 1015
A65: 63 | B65: 邱耀强 | C65: 2024年早造 | D65: 水稻 | E65: 耙田 | F65: 111 | G65: 22 | H65: =F65*0.36 -> 39.96 | I65: 2442
A66: 64 | C66: 2024年早造 | D66: 水稻 | E66: 收割 | F66: 111 | G66: 15 | H66: =F66*0.27 -> 29.97 | I66: 1665
A67: 65 | C67: 2024年早造 | D67: 水稻 | E67: 单一飞防（叶面肥） | F67: 110 | G67: 5.8 | H67: =F67*0.1 -> 11 | I67: =F67*G67 -> 638
A68: 66 | B68: 蔡利昌 | C68: 2024年早造 | D68: 水稻 | E68: 单一飞防（叶面肥） | F68: 110 | G68: 5.8 | H68: 11 | I68: 638
A69: 67 | B69: 蔡利昌 | C69: 2024年早造 | D69: 水稻 | E69: 收割 | F69: 110 | G69: 15 | H69: =F69*0.27 -> 29.7 | I69: 1650
A70: 68 | B70: 彭伟强 | C70: 2024年早造 | D70: 水稻 | E70: 单一飞防（叶面肥） | F70: 42 | G70: 5.8 | H70: 4.2 | I70: 243.6
A71: 69 | B71: 陈学能 | C71: 2024年早造 | D71: 水稻 | E71: 单一飞防（叶面肥） | F71: 90 | G71: 5.8 | H71: 9 | I71: 522
A72: 70 | B72: 平石村委 | C72: 2024年早造 | D72: 水稻 | E72: 单一飞防（叶面肥） | F72: 45 | G72: 5.8 | H72: 4.5 | I72: 261
A73: 71 | B73: 双德村委 | C73: 2024年早造 | D73: 水稻 | E73: 单一飞防（叶面肥） | F73: 36.8 | G73: 5.8 | H73: 3.68 | I73: 213.44
A74: 72 | B74: 龙凤村委 | C74: 2024年早造 | D74: 水稻 | E74: 单一飞防（叶面肥） | F74: 200 | G74: 5.8 | H74: 20 | I74: 1160
A75: 73 | B75: 范俊锋 | C75: 2024年早造 | D75: 水稻 | E75: 单一飞防（叶面肥） | F75: 8 | G75: 5.8 | H75: 0.8 | I75: 46.4
A76: 74 | B76: 吴达朝 | C76: 2024年早造 | D76: 水稻 | E76: 单一飞防（叶面肥） | F76: 50 | G76: 5.8 | H76: =F76*0.1 -> 5 | I76: 290
A77: 75 | B77: 梁荣健 | C77: 2024年早造 | D77: 水稻 | E77: 插秧 | F77: 60 | G77: 15 | H77: =F77*0.27 -> 16.2 | I77: 900
A78: 76 | C78: 2024年早造 | D78: 水稻 | E78: 单一飞防（叶面肥） | F78: 70 | G78: 5.8 | H78: 7 | I78: 406
A79: 77 | B79: 张永华 | C79: 2024年早造 | D79: 水稻 | E79: 单一飞防（叶面肥） | F79: 95 | G79: 5.8 | H79: 9.5 | I79: 551
A80: 78 | B80: 刘维安 | C80: 2024年早造 | D80: 水稻 | E80: 耙田 | F80: 123 | G80: 22 | H80: =F80*0.36 -> 44.28 | I80: 2706
A81: 79 | C81: 2024年早造 | D81: 水稻 | E81: 插秧 | F81: 123 | G81: 15 | H81: =F81*0.27 -> 33.21 | I81: 1845
A82: 80 | B82: 吴海祥 | C82: 2024年早造 | D82: 水稻 | E82: 耙田 | F82: 40 | G82: 22 | H82: =F82*0.36 -> 14.4 | I82: 880
A83: 81 | C83: 2024年早造 | D83: 水稻 | E83: 插秧 | F83: 40 | G83: 15 | H83: 10.8 | I83: 600
A84: 82 | C84: 2024年早造 | D84: 水稻 | E84: 收割 | F84: 40 | G84: 15 | H84: 10.8 | I84: 600
A85: 83 | B85: 卢远荣 | C85: 2024年早造 | D85: 水稻 | E85: 单一飞防（叶面肥） | F85: 123 | G85: 5.8 | H85: =F85*0.1 -> 12.3 | I85: 713.4
A86: 84 | B86: 黄文忠 | C86: 2024年早造 | D86: 水稻 | E86: 单一飞防（叶面肥） | F86: 40 | G86: 5.8 | H86: 4 | I86: 232
A87: 85 | B87: 黄福棣 | C87: 2024年早造 | D87: 水稻 | E87: 单一飞防（叶面肥） | F87: 130 | G87: 5.8 | H87: 13 | I87: 754
A88: 86 | B88: 梁伟芳 | C88: 2024年早造 | D88: 水稻 | E88: 单一飞防（叶面肥） | F88: 57.8 | G88: 5.8 | H88: 5.78 | I88: 335.24
A89: 87 | B89: 陈佐林 | C89: 2024年早造 | D89: 水稻 | E89: 单一飞防（叶面肥） | F89: 37.7 | G89: 5.8 | H89: 3.77 | I89: 218.66
A90: 88 | B90: 北羌 | C90: 2024年早造 | D90: 水稻 | E90: 收割 | F90: 1008 | G90: 15 | H90: =F90*0.27 -> 272.16 | I90: 15120
A91: 89 | C91: 2024年早造 | D91: 水稻 | E91: 单一飞防（叶面肥） | F91: 1266 | G91: 5.8 | H91: =F91*0.1 -> 126.6 | I91: 7342.8
A92: 90 | B92: 黄金䓣 | C92: 2024年早造 | D92: 水稻 | E92: 单一飞防（叶面肥） | F92: 787 | G92: 5.8 | H92: 78.7 | I92: 4564.6
A93: 91 | B93: 罗阳 | C93: 2024年早造 | D93: 水稻 | E93: 单一飞防（叶面肥） | F93: 213 | G93: 5.8 | H93: 21.3 | I93: 1235.4
A94: 92 | B94: 覃亦文 | C94: 2024年早造 | D94: 水稻 | E94: 单一飞防（叶面肥） | F94: 200 | G94: 5.8 | H94: 20 | I94: 1160
A95: 93 | B95: 伍其芳 | C95: 2024年早造 | D95: 水稻 | E95: 单一飞防（叶面肥） | F95: 48 | G95: 5.8 | H95: 4.8 | I95: 278.4
A96: 94 | B96: 黄伟贤 | C96: 2024年早造 | D96: 水稻 | E96: 单一飞防（叶面肥） | F96: 41 | G96: 5.8 | H96: 4.1 | I96: 237.8
A97: 95 | B97: 尹启英 | C97: 2024年早造 | D97: 水稻 | E97: 单一飞防（叶面肥） | F97: 60 | G97: 5.8 | H97: 6 | I97: 348
A98: 96 | B98: 蓝荣芳 | C98: 2024年早造 | D98: 水稻 | E98: 单一飞防（叶面肥） | F98: 58.9 | G98: 5.8 | H98: 5.89 | I98: 341.62
A99: 97 | B99: 范海连 | C99: 2024年早造 | D99: 水稻 | E99: 单一飞防（叶面肥） | F99: 480 | G99: 5.8 | H99: 48 | I99: 2784
A100: 98 | C100: 2024年早造 | D100: 水稻 | E100: 耙田 | F100: 480 | G100: 22 | H100: =F100*0.36 -> 172.8 | I100: 10560
A101: 99 | C101: 2024年早造 | D101: 水稻 | E101: 收割 | F101: 480 | G101: 15 | H101: =F101*0.27 -> 129.6 | I101: 7200
A102: 100 | B102: 其成合作社 | C102: 2024年早造 | D102: 玉桂 | E102: 修枝 | F102: 1930 | G102: 22 | H102: 694.8 | I102: 42460
A103: 101 | C103: 2024年早造 | D103: 玉桂 | E103: 采摘 | F103: 1930 | G103: 22 | H103: 694.8 | I103: 42460
B104: 彭远毅 | C104: 2023年早造 | D104: 水稻 | E104: 病虫害防治 | F104: 233.13 | G104: 0 | H104: =F104*0.1 -> 23.313 | I104: 0
B105: 彭远毅 | C105: 2023年早造 | D105: 水稻 | E105: 病虫害防治 | F105: 26.55 | G105: 0 | H105: 2.655 | I105: 0
B106: 彭铭格 | C106: 2023年早造 | D106: 水稻 | E106: 病虫害防治 | F106: 15 | G106: 0 | H106: 1.5 | I106: 0
B107: 杨星均 | C107: 2023年早造 | D107: 水稻 | E107: 病虫害防治 | F107: 68 | G107: 0 | H107: 6.8 | I107: 0
B108: 黎凤娣 | C108: 2023年早造 | D108: 水稻 | E108: 病虫害防治 | F108: 60 | G108: 0 | H108: 6 | I108: 0
B109: 黄龙汉 | C109: 2023年早造 | D109: 水稻 | E109: 病虫害防治 | F109: 30.7 | G109: 0 | H109: 3.07 | I109: 0
B110: 黄伯许 | C110: 2023年早造 | D110: 水稻 | E110: 病虫害防治 | F110: 40.8 | G110: 0 | H110: 4.08 | I110: 0
B111: 熊汉荣 | C111: 2023年早造 | D111: 水稻 | E111: 病虫害防治 | F111: 38.5 | G111: 0 | H111: 3.85 | I111: 0
B112: 陈亚生 | C112: 2023年早造 | D112: 水稻 | E112: 病虫害防治 | F112: 20 | G112: 0 | H112: 2 | I112: 0
B113: 邓金良 | C113: 2023年早造 | D113: 水稻 | E113: 病虫害防治 | F113: 49.5 | G113: 0 | H113: 4.95 | I113: 0
B114: 刘其波 | C114: 2023年早造 | D114: 水稻 | E114: 病虫害防治 | F114: 69.3 | G114: 0 | H114: 6.93 | I114: 0
B115: 卢宪法 | C115: 2023年早造 | D115: 水稻 | E115: 病虫害防治 | F115: 40.8 | G115: 0 | H115: 4.08 | I115: 0
B116: 伍其芳 | C116: 2023年早造 | D116: 水稻 | E116: 病虫害防治 | F116: 45.4 | G116: 0 | H116: 4.54 | I116: 0
B117: 邓树忠 | C117: 2023年早造 | D117: 水稻 | E117: 病虫害防治 | F117: 26.8 | G117: 0 | H117: 2.68 | I117: 0
B118: 蓝荣芳 | C118: 2023年早造 | D118: 水稻 | E118: 病虫害防治 | F118: 72.8 | G118: 0 | H118: 7.28 | I118: 0
B119: 刘均发 | C119: 2023年早造 | D119: 水稻 | E119: 病虫害防治 | F119: 62.6 | G119: 0 | H119: 6.26 | I119: 0
B120: 尹启英 | C120: 2023年早造 | D120: 水稻 | E120: 病虫害防治 | F120: 89.9 | G120: 0 | H120: 8.99 | I120: 0
B121: 区广雄 | C121: 2023年早造 | D121: 水稻 | E121: 病虫害防治 | F121: 35 | G121: 0 | H121: 3.5 | I121: 0
B122: 罗定德米农业有限公司 | C122: 2023年早造 | D122: 水稻 | E122: 病虫害防治 | F122: 351 | G122: 0 | H122: 35.1 | I122: 0
B123: 罗定市益源农业科技有限公司 | C123: 2023年早造 | D123: 水稻 | E123: 病虫害防治 | F123: 80 | G123: 0 | H123: 8 | I123: 0
B124: 刘劲彬 | C124: 2023年早造 | D124: 水稻 | E124: 病虫害防治 | F124: 47 | G124: 0 | H124: 4.7 | I124: 0
B125: 蔡成剑 | C125: 2023年早造 | D125: 水稻 | E125: 病虫害防治 | F125: 150 | G125: 0 | H125: 15 | I125: 0
B126: 梁杰明 | C126: 2023年早造 | D126: 水稻 | E126: 病虫害防治 | F126: 150 | G126: 0 | H126: 15 | I126: 0
B127: 广东新生源农业发展有限公司 | C127: 2023年早造 | D127: 水稻 | E127: 病虫害防治 | F127: 111.1 | G127: 0 | H127: 11.11 | I127: 0
B128: 卢远荣 | C128: 2023年晚造 | D128: 水稻 | E128: 病虫害防治 | F128: 123 | G128: 0 | H128: 12.3 | I128: 0
B129: 蔡成剑 | C129: 2023年晚造 | D129: 水稻 | E129: 病虫害防治 | F129: 150 | G129: 0 | H129: 15 | I129: 0
B130: 区广雄 | C130: 2023年晚造 | D130: 水稻 | E130: 病虫害防治 | F130: 54 | G130: 0 | H130: 5.4 | I130: 0
B131: 罗定市船步镇红岭村民委员会 | C131: 2023年晚造 | D131: 水稻 | E131: 病虫害防治 | F131: 396 | G131: 0 | H131: 39.6 | I131: 0
B132: 黄伟贤 | C132: 2023年晚造 | D132: 水稻 | E132: 病虫害防治 | F132: 46.7 | G132: 0 | H132: 4.67 | I132: 0
B133: 蓝荣芳 | C133: 2023年晚造 | D133: 水稻 | E133: 病虫害防治 | F133: 77.9 | G133: 0 | H133: 7.79 | I133: 0
B134: 伍其芳 | C134: 2023年晚造 | D134: 水稻 | E134: 病虫害防治 | F134: 41.2 | G134: 0 | H134: 4.12 | I134: 0
B135: 刘小英 | C135: 2023年晚造 | D135: 水稻 | E135: 病虫害防治 | F135: 54.8 | G135: 0 | H135: 5.48 | I135: 0
B136: 熊汉荣 | C136: 2023年晚造 | D136: 水稻 | E136: 病虫害防治 | F136: 23.2 | G136: 0 | H136: 2.32 | I136: 0
B137: 刘其波 | C137: 2023年晚造 | D137: 水稻 | E137: 病虫害防治 | F137: 41 | G137: 0 | H137: 4.1 | I137: 0
B138: 邓树忠 | C138: 2023年晚造 | D138: 水稻 | E138: 病虫害防治 | F138: 29.8 | G138: 0 | H138: 2.98 | I138: 0
B139: 尹启英 | C139: 2023年晚造 | D139: 水稻 | E139: 病虫害防治 | F139: 77.8 | G139: 0 | H139: 7.78 | I139: 0
A140: 102 | B140: 黎凤娣 | C140: 2023年晚造 | D140: 水稻 | E140: 病虫害防治 | F140: 78.1 | G140: 0 | H140: 7.81 | I140: 0
A141: 103 | B141: 邓章金 | C141: 2023年晚造 | D141: 水稻 | E141: 病虫害防治 | F141: 20.6 | G141: 0 | H141: 2.06 | I141: 0
A142: 104 | B142: 杨星均 | C142: 2023年晚造 | D142: 水稻 | E142: 病虫害防治 | F142: 196.2 | G142: 0 | H142: 19.62 | I142: 0
A143: 105 | B143: 唐其万 | C143: 2023年晚造 | D143: 水稻 | E143: 病虫害防治 | F143: 24 | G143: 0 | H143: 2.4 | I143: 0
A144: 106 | B144: 唐可尉 | C144: 2023年晚造 | D144: 水稻 | E144: 病虫害防治 | F144: 26.3 | G144: 0 | H144: 2.63 | I144: 0
A145: 107 | B145: 罗定德米农业有限公司 | C145: 2023年晚造 | D145: 水稻 | E145: 病虫害防治 | F145: 353 | G145: 0 | H145: 35.3 | I145: 0
A146: 108 | B146: 李石才 | C146: 2023年晚造 | D146: 水稻 | E146: 病虫害防治 | F146: 70 | G146: 0 | H146: 7 | I146: 0
A147: 109 | B147: 黄善建 | C147: 2023年晚造 | D147: 水稻 | E147: 病虫害防治 | F147: 23 | G147: 0 | H147: 2.3 | I147: 0
A148: 110 | B148: 黎杰创 | C148: 2023年晚造 | D148: 水稻 | E148: 病虫害防治 | F148: 48 | G148: 0 | H148: 4.8 | I148: 0
A149: 111 | B149: 崔辉志 | C149: 2023年晚造 | D149: 水稻 | E149: 病虫害防治（单一飞防含药） | F149: 547.4 | G149: 12 | H149: =F149*0.2 -> 109.48 | I149: =F149*G149 -> 6568.8
A150: 112 | B150: 罗定市罗镜镇置田家庭农场 | C150: 2023年晚造 | D150: 水稻 | E150: 病虫害防治（单一飞防含药） | F150: 121.6 | G150: 12 | H150: 24.32 | I150: 1459.2
A151: 113 | B151: 罗定市润粮农作物种植合作社 | C151: 2023年晚造 | D151: 水稻 | E151: 病虫害防治（单一飞防含药） | F151: 124.9 | G151: 12 | H151: 24.98 | I151: 1498.8
A152: 114 | B152: 何光铧 | C152: 2023年晚造 | D152: 水稻 | E152: 病虫害防治（单一飞防含药） | F152: 246.5 | G152: 12 | H152: 49.3 | I152: 2958
A153: 115 | B153: 广东省桦一种业有限公司 | C153: 2023年晚造 | D153: 水稻 | E153: 病虫害防治（单一飞防含药） | F153: 55.7 | G153: 12 | H153: 11.14 | I153: 668.4
A154: 116 | B154: 陈周灿 | C154: 2023年晚造 | D154: 水稻 | E154: 病虫害防治（单一飞防含药） | F154: 388.5 | G154: 12 | H154: 77.7 | I154: 4662
A155: 117 | B155: 陈业杰 | C155: 2023年晚造 | D155: 水稻 | E155: 病虫害防治（单一飞防含药） | F155: 1120.3 | G155: 12 | H155: 224.06 | I155: 13443.6
A156: 118 | B156: 罗定德米农业有限公司 | C156: 2024年晚造 | D156: 水稻 | E156: 耙田 | F156: 353 | G156: 22 | H156: =F156*0.36 -> 127.08 | I156: 7766
A157: 119 | B157: 莫亚钊 | C157: 2024年晚造 | D157: 水稻 | E157: 耙田 | F157: 1038 | G157: 22 | H157: 373.68 | I157: 22836
A158: 120 | B158: 梁成就 | C158: 2024年晚造 | D158: 水稻 | E158: 耙田 | F158: 218 | G158: 22 | H158: 78.48 | I158: 4796
A159: 121 | B159: 曾海婵 | C159: 2024年晚造 | D159: 水稻 | E159: 耙田 | F159: 174 | G159: 22 | H159: 62.64 | I159: 3828
A160: 122 | B160: 陈汉清 | C160: 2024年晚造 | D160: 水稻 | E160: 耙田 | F160: 195 | G160: 22 | H160: 70.2 | I160: 4290
A161: 123 | B161: 白盛坤 | C161: 2024年晚造 | D161: 水稻 | E161: 耙田 | F161: 170 | G161: 22 | H161: 61.2 | I161: 3740
A162: 124 | B162: 邱耀强 | C162: 2024年晚造 | D162: 水稻 | E162: 耙田 | F162: 228 | G162: 22 | H162: 82.08 | I162: 5016
A163: 125 | B163: 陈南章 | C163: 2024年晚造 | D163: 水稻 | E163: 耙田 | F163: 200 | G163: 22 | H163: 72 | I163: 4400
A164: 126 | B164: 沈健勋 | C164: 2024年晚造 | D164: 水稻 | E164: 耙田 | F164: 140 | G164: 22 | H164: 50.4 | I164: 3080
A165: 127 | B165: 致达 | C165: 2024年晚造 | D165: 水稻 | E165: 耙田 | F165: 700 | G165: 22 | H165: 252 | I165: 15400
A166: 128 | B166: 吴宇鸿 | C166: 2024年晚造 | D166: 水稻 | E166: 耙田 | F166: 350 | G166: 22 | H166: 126 | I166: 7700
A167: 129 | B167: 张世东 | C167: 2024年晚造 | D167: 水稻 | E167: 耙田 | F167: 400 | G167: 22 | H167: 144 | I167: 8800
A168: 130 | B168: 彭金鼎 | C168: 2024年晚造 | D168: 水稻 | E168: 耙田 | F168: 230 | G168: 22 | H168: 82.8 | I168: 5060
A169: 131 | B169: 沈贵有 | C169: 2024年晚造 | D169: 水稻 | E169: 耙田 | F169: 700 | G169: 22 | H169: 252 | I169: 15400
A170: 132 | C170: 2024年晚造 | D170: 水稻 | E170: 插秧 | F170: 700 | G170: 15 | H170: =F170*0.27 -> 189 | I170: 10500
A171: 133 | B171: 张世东 | C171: 2024年晚造 | D171: 水稻 | E171: 插秧 | F171: 400 | G171: 15 | H171: =F171*0.27 -> 108 | I171: 6000
A172: 134 | B172: 䓣塘镇北羌村委 | C172: 2024年晚造 | D172: 水稻 | E172: 单一飞防（叶面肥） | F172: 1200 | G172: 5.8 | H172: =F172*0.1 -> 120 | I172: 6960
A173: 135 | B173: 䓣塘镇黄金䓣村委 | C173: 2024年晚造 | D173: 水稻 | E173: 单一飞防（叶面肥） | F173: 866.7 | G173: 5.8 | H173: 86.67 | I173: 5026.86
A174: 136 | B174: 陈俊文 | C174: 2024年晚造 | D174: 水稻 | E174: 单一飞防（叶面肥） | F174: 165 | G174: 5.8 | H174: 16.5 | I174: 957
A175: 137 | B175: 覃亦文 | C175: 2024年晚造 | D175: 水稻 | E175: 单一飞防（叶面肥） | F175: 529 | G175: 5.8 | H175: 52.9 | I175: 3068.2
A176: 138 | B176: 梁成就 | C176: 2024年晚造 | D176: 水稻 | E176: 单一飞防（叶面肥） | F176: 262 | G176: 5.8 | H176: 26.2 | I176: 1519.6
A177: 139 | B177: 曾海婵 | C177: 2024年晚造 | D177: 水稻 | E177: 单一飞防（叶面肥） | F177: 228 | G177: 5.8 | H177: 22.8 | I177: 1322.4
A178: 140 | B178: 彭伟强 | C178: 2024年晚造 | D178: 水稻 | E178: 单一飞防（叶面肥） | F178: 191 | G178: 5.8 | H178: 19.1 | I178: 1107.8
A179: 141 | B179: 素龙街道上宁村委 | C179: 2024年晚造 | D179: 水稻 | E179: 单一飞防（叶面肥） | F179: 659.75 | G179: 5.8 | H179: 65.975 | I179: 3826.55
A180: 142 | B180: 素龙街道凤塘村委 | C180: 2024年晚造 | D180: 水稻 | E180: 单一飞防（叶面肥） | F180: 1317 | G180: 5.8 | H180: 131.7 | I180: 7638.6
A181: 143 | B181: 崔辉志 | C181: 2024年晚造 | D181: 水稻 | E181: 单一飞防（叶面肥） | F181: 267 | G181: 5.8 | H181: 26.7 | I181: 1548.6
A182: 144 | B182: 张永华 | C182: 2024年晚造 | D182: 水稻 | E182: 单一飞防（叶面肥） | F182: 208 | G182: 5.8 | H182: 20.8 | I182: 1206.4
A183: 145 | B183: 潘志伟 | C183: 2024年晚造 | D183: 水稻 | E183: 单一飞防（叶面肥） | F183: 35.8 | G183: 5.8 | H183: 3.58 | I183: 207.64
A184: 146 | B184: 石龙村委 | C184: 2024年晚造 | D184: 水稻 | E184: 单一飞防（叶面肥） | F184: 432 | G184: 5.8 | H184: 43.2 | I184: 2505.6
A185: 147 | B185: 罗贯村委 | C185: 2024年晚造 | D185: 水稻 | E185: 单一飞防（叶面肥） | F185: 588.3 | G185: 5.8 | H185: 58.83 | I185: 3412.14
A186: 148 | B186: 林卫国 | C186: 2024年晚造 | D186: 水稻 | E186: 单一飞防（叶面肥） | F186: 73.6 | G186: 5.8 | H186: 7.36 | I186: 426.88
A187: 149 | B187: 邱耀强 | C187: 2024年晚造 | D187: 水稻 | E187: 单一飞防（叶面肥） | F187: 228 | G187: 5.8 | H187: 22.8 | I187: 1322.4
A188: 150 | B188: 渡头村委 | C188: 2024年晚造 | D188: 水稻 | E188: 单一飞防（叶面肥） | F188: 561.3 | G188: 5.8 | H188: 56.13 | I188: 3255.54
A189: 151 | B189: 䓣社村委 | C189: 2024年晚造 | D189: 水稻 | E189: 单一飞防（叶面肥） | F189: 370.5 | G189: 5.8 | H189: 37.05 | I189: 2148.9
A190: 152 | B190: 陈汉清 | C190: 2024年晚造 | D190: 水稻 | E190: 单一飞防（叶面肥） | F190: 195 | G190: 5.8 | H190: 19.5 | I190: 1131
A191: 153 | B191: 白盛坤 | C191: 2024年晚造 | D191: 水稻 | E191: 单一飞防（叶面肥） | F191: 170 | G191: 5.8 | H191: 17 | I191: 986
A192: 154 | B192: 凤西村委 | C192: 2024年晚造 | D192: 水稻 | E192: 单一飞防（叶面肥） | F192: 53.18 | G192: 5.8 | H192: 5.318 | I192: 308.444
A193: 155 | B193: 沙豪岗 | C193: 2024年晚造 | D193: 水稻 | E193: 单一飞防（叶面肥） | F193: 637.12 | G193: 5.8 | H193: 63.712 | I193: 3695.296
A194: 156 | B194: 陈炎芳 | C194: 2024年晚造 | D194: 水稻 | E194: 单一飞防（叶面肥） | F194: 50 | G194: 5.8 | H194: 5 | I194: 290
A195: 157 | B195: 陈中月 | C195: 2024年晚造 | D195: 水稻 | E195: 单一飞防（叶面肥） | F195: 50 | G195: 5.8 | H195: 5 | I195: 290
A196: 158 | B196: 张胡清 | C196: 2024年晚造 | D196: 水稻 | E196: 单一飞防（叶面肥） | F196: 70 | G196: 5.8 | H196: 7 | I196: 406
A197: 159 | B197: 陈世源 | C197: 2024年晚造 | D197: 水稻 | E197: 单一飞防（叶面肥） | F197: 50 | G197: 5.8 | H197: 5 | I197: 290
A198: 160 | B198: 黄金良 | C198: 2024年晚造 | D198: 水稻 | E198: 单一飞防（叶面肥） | F198: 25 | G198: 5.8 | H198: 2.5 | I198: 145
A199: 161 | B199: 营下村委 | C199: 2024年晚造 | D199: 水稻 | E199: 单一飞防（叶面肥） | F199: 1430 | G199: 5.8 | H199: 143 | I199: 8294
A200: 162 | B200: 周志阳 | C200: 2024年晚造 | D200: 水稻 | E200: 单一飞防（叶面肥） | F200: 164 | G200: 5.8 | H200: 16.4 | I200: 951.2
... 10 more rows
